fUSD/lending_fUSD_20240903
["ID","MTS","AMOUNT","RATE_DAILY","PERIOD"]
[337063421,1725402640216,-1018.98,0.00014999,2]
[337063422,1725402640225,-1018.98,0.00014999,2]
[337063423,1725402640236,-1018.98,0.00014999,2]
[337063424,1725402640246,-1018.98,0.00014999,2]
[337063425,1725402640256,-1018.98,0.00014999,2]
[337063426,1725402640266,-1018.98,0.00014999,2]
[337063427,1725402640275,-1018.98,0.00014999,2]
[337063428,1725402640284,-1018.98,0.00014999,2]
[337063429,1725402640294,-1018.98,0.00014999,2]
[337063430,1725402640303,-1018.98,0.00014999,2]
[337063431,1725402640312,-1018.98,0.00014999,2]
[337063432,1725402640322,-1018.98,0.00014999,2]
[337063433,1725402640331,-1018.98,0.00014999,2]
[337063434,1725402640340,-1019.10901557,0.00014999,2]
[337063435,1725402640349,-5020.93,0.00014999,2]
[337063436,1725402640359,-5020.93,0.00014999,2]
[337063437,1725402640368,-5020.93,0.00014999,2]
[337063438,1725402640377,-5020.93,0.00014999,2]
[337063439,1725402640386,-5020.93,0.00014999,2]
[337063440,1725402640398,-5020.93,0.00014999,2]
[337063441,1725402640407,-5020.93,0.00014999,2]
[337063442,1725402640416,-5020.93,0.00014999,2]
[337063443,1725402640426,-5020.93,0.00014999,2]
[337063444,1725402640435,-5020.93,0.00014999,2]
[337063445,1725402640447,-5020.93,0.00014999,2]
[337063446,1725402640458,-5020.93,0.00014999,2]
[337063448,1725402640468,-5020.93,0.00014999,2]
[337063450,1725402640478,-5020.93,0.00014999,2]
[337063451,1725402640487,-5020.93,0.00014999,2]
[337063453,1725402640497,-5021.02575059,0.00014999,2]
[337063455,1725402640508,-747.42,0.00014999,2]
[337063456,1725402640518,-747.42,0.00014999,2]
[337063458,1725402640527,-747.42,0.00014999,2]
[337063460,1725402640537,-747.42,0.00014999,2]
[337063461,1725402640546,-747.42,0.00014999,2]
[337063463,1725402640556,-747.42,0.00014999,2]
[337063464,1725402640565,-747.42,0.00014999,2]
[337063466,1725402640575,-747.42,0.00014999,2]
[337063468,1725402640584,-747.42,0.00014999,2]
[337063469,1725402640593,-747.42,0.00014999,2]
[337063471,1725402640604,-747.42,0.00014999,2]
[337063473,1725402640613,-747.42,0.00014999,2]
[337063474,1725402640622,-747.42,0.00014999,2]
[337063476,1725402640631,-747.42,0.00014999,2]
[337063477,1725402640640,-747.44524591,0.00014999,2]
[337063479,1725402640651,-500.0,0.00014999,2]
[337063480,1725402640659,-500.0,0.00014999,2]
[337063482,1725402640668,-500.0,0.00014999,2]
[337063484,1725402640678,-500.0,0.00014999,2]
[337063485,1725402640687,-500.0,0.00014999,2]
[337063487,1725402640697,-500.0,0.00014999,2]
[337063489,1725402640709,-279.17642672,0.00014999,2]
[337063491,1725402640718,-211.9268339,0.00014999,2]
[337063493,1725402640728,-529.46,0.00014999,2]
[337063495,1725402640737,-529.46,0.00014999,2]
[337063496,1725402640746,-529.46,0.00014999,2]
[337063498,1725402640756,-529.46,0.00014999,2]
[337063500,1725402640767,-529.46,0.00014999,2]
[337063501,1725402640776,-529.46,0.00014999,2]
[337063502,1725402640785,-529.46,0.00014999,2]
[337063503,1725402640794,-529.46,0.00014999,2]
[337063504,1725402640805,-529.46,0.00014999,2]
[337063505,1725402640814,-529.46,0.00014999,2]
[337063506,1725402640824,-529.46,0.00014999,2]
[337063507,1725402640832,-529.46,0.00014999,2]
[337063508,1725402640841,-529.46,0.00014999,2]
[337063509,1725402640850,-529.46,0.00014999,2]
[337063510,1725402640859,-529.46,0.00014999,2]
[337063511,1725402640868,-529.67535973,0.00014999,2]
[337063512,1725402640878,-500.0,0.00014999,2]
[337063513,1725402640889,-500.0,0.00014999,2]
[337063514,1725402640899,-500.0,0.00014999,2]
[337063515,1725402640908,-500.0,0.00014999,2]
[337063517,1725402640917,-500.0,0.00014999,2]
[337063518,1725402640927,-475.11713056,0.00014999,2]
[337063519,1725402640936,-51725.54064202,0.00014999,2]
[337063523,1725402640995,-146.24935798,0.00014999,2]
[337063524,1725402641004,-2410.58994277,0.00014999,2]
[337063525,1725402641016,-687.06,0.00014999,2]
[337063526,1725402641027,-1558.49740916,0.00014999,2]
[337063527,1725402641308,-1.49061929,0.00014999,2]
[337063528,1725402641455,-284.68492644,0.00014999,2]
[337063529,1725402641469,-531.2423039,0.00014999,2]
[337063530,1725402641486,-5749.0,0.00014999,2]
[337063531,1725402641499,-502.49888056,0.00014999,2]
[337063532,1725402641517,-405.79,0.00014003,2]
[337063533,1725402641530,-151.21,0.00014003,2]
[337063534,1725402641541,-2689.32,0.00014999,2]
[337063535,1725402641551,-1035.0,0.00014999,2]
[337063536,1725402641566,-1213.13686397,0.00014999,2]
[337063537,1725402641578,-354.33584849,0.00014999,2]
[337063538,1725402641590,-2923.62999489,0.00014999,2]
[337063539,1725402641601,-2666.01834605,0.00014999,2]
[337063540,1725402641612,-3756.6679994,0.00014999,2]
[337063544,1725402643036,-455.17195112,0.00014652,2]
[337063545,1725402643046,-6409.65804888,0.00014999,2]
[337063546,1725402643057,-19098.9588162,0.00014999,2]
[337063547,1725402643067,-8231.39871704,0.00014999,2]
[337063548,1725402643078,-569.2646466,0.00014999,2]
[337063549,1725402643131,-1963.49379791,0.00014999,2]
[337063569,1725402644111,-446.25,0.00014999,2]
[337063570,1725402644124,-4060.40956993,0.00014999,2]
[337063571,1725402644136,-694.512008,0.00014999,2]
[337063572,1725402644148,-301.25385499,0.00014999,2]
[337063573,1725402644159,-1840.0,0.00014999,2]
[337063574,1725402644170,-1016.18242901,0.00014999,2]
[337063578,1725402645976,-1078.0,0.00014003,2]
[337063579,1725402645986,-1848.24615033,0.00014999,2]
[337063580,1725402646060,-849.13398569,0.00014999,2]
[337063581,1725402646071,-453.16104608,0.00014999,2]
[337063582,1725402646082,-673.60037733,0.00014999,2]
[337063583,1725402646093,-17412.24119828,0.00014999,2]
[337063584,1725402646104,-3700.01618862,0.00014999,2]
[337063585,1725402646115,-1734.84626364,0.00014999,2]
[337063586,1725402646126,-2448.9903007,0.00014999,2]
[337063587,1725402646175,-779.46259794,0.00014999,2]
[337063588,1725402646188,-719.95798759,0.00014999,2]
[337063589,1725402646200,-912.34615092,0.00014999,2]
[337063590,1725402646257,-286.68669669,0.00014999,2]
[337063591,1725402646269,-930.33603271,0.00014999,2]
[337063592,1725402646278,-4794.76576761,0.00014999,2]
[337063593,1725402646290,-856.20926424,0.00014999,2]
[337063617,1725402685017,500.0,0.00011164,2]
[337063618,1725402685210,500.0,0.00011164,2]
[337063619,1725402686595,500.0,0.00012534,2]
[337063620,1725402954190,4175.09,0.00013,2]
[337063621,1725403094342,298.63,0.00010959,2]
[337063622,1725403108425,426.38,0.00011384,2]
[337063623,1725403297778,2742.88,0.00012992,2]
[337063624,1725403316682,169.79,0.00012965,2]
[337063625,1725403316704,268.86,0.00012965,2]
[337063626,1725403343469,23809.78,0.00012972,2]
[337063627,1725403439762,500.0,0.00011164,2]
[337063628,1725403445720,500.0,0.00011164,2]
[337063629,1725403446301,302.569422,0.00011164,2]
[337063630,1725403465071,500.0,0.00011164,2]
[337063631,1725403466663,500.0,0.00012534,2]
[337063632,1725403587828,169.98,0.00010959,2]
[337063634,1725403699179,405.06,0.00011352,2]
[337063635,1725403732140,-250.0,0.00013044,2]
[337063636,1725403732181,-75.81843928,0.00013133,2]
[337063644,1725403807089,-151.56,0.0001303,2]
[337063645,1725403807133,-250.0,0.00013039,2]
[337063646,1725403807180,-64.69772524,0.00013133,2]
[337063660,1725403832186,-16.26322855,0.00013133,2]
[337063661,1725403832196,-250.0,0.00013233,2]
[337063662,1725403832205,-171.53,0.00013243,2]
[337063663,1725403832214,-530.56,0.00013269,2]
[337063664,1725403832223,-469.44,0.00013325,2]
[337063665,1725403832232,-7946.67724416,0.00013325,2]
[337063666,1725403832242,-150.0,0.00013397,2]
[337063667,1725403832251,-300.0,0.00013421,2]
[337063668,1725403832260,-10000.0,0.00013422,2]
[337063669,1725403832270,-405.06,0.00013616,2]
[337063670,1725403832278,-458.50075125,0.00013698,2]
[337063671,1725403832287,-395.38,0.00013777,2]
[337063672,1725403832296,-395.38,0.00013781,2]
[337063673,1725403832305,-500.0,0.00013783,2]
[337063674,1725403832315,-150.0,0.00013784,2]
[337063675,1725403832326,-395.38,0.00013784,2]
[337063676,1725403832335,-395.38,0.00013788,2]
[337063677,1725403832344,-395.38,0.00013792,2]
[337063679,1725403832353,-395.38,0.00013795,2]
[337063681,1725403832362,-395.38,0.00013799,2]
[337063683,1725403832372,-395.38,0.00013802,2]
[337063685,1725403832381,-395.38,0.00013806,2]
[337063687,1725403832391,-395.38,0.0001381,2]
[337063689,1725403832400,-395.38,0.00013813,2]
[337063691,1725403832410,-395.38,0.00013817,2]
[337063693,1725403832419,-150.0,0.00013817,2]
[337063695,1725403832428,-395.38,0.00013821,2]
[337063697,1725403832438,-395.38,0.00013824,2]
[337063699,1725403832447,-395.38,0.00013828,2]
[337063700,1725403832456,-395.38,0.00013831,2]
[337063702,1725403832465,-395.38,0.00013835,2]
[337063704,1725403832475,-395.38,0.00013839,2]
[337063706,1725403832483,-395.38,0.00013842,2]
[337063707,1725403832493,-395.38,0.00013846,2]
[337063708,1725403832502,-327.6182808,0.0001385,2]
[337063709,1725403832512,-500.0,0.00013904,2]
[337063710,1725403832706,-169.69,0.00013954,2]
[337063711,1725403832717,-150.0,0.000141,2]
[337063712,1725403832727,-1601.132,0.000141,2]
[337063713,1725403832736,-1136.0,0.000141,2]
[337063714,1725403832746,-1921.0,0.000141,2]
[337063715,1725403832755,-150.0,0.000141,2]
[337063716,1725403832765,-150.0,0.000141,2]
[337063717,1725403832774,-319.079,0.000141,2]
[337063718,1725403832783,-918.63,0.000143,2]
[337063719,1725403832794,-500.0,0.00014442,2]
[337063720,1725403832803,-420.0,0.00014712,2]
[337063721,1725403832813,-250.23,0.00014776,2]
[337063722,1725403832825,-250.23,0.00014776,2]
[337063723,1725403832838,-246.98767894,0.00014786,2]
[337063724,1725403832847,-1261.8627,0.00014786,2]
[337063725,1725403832857,-260.4986,0.00014786,2]
[337063726,1725403832867,-13265.31857732,0.00014786,2]
[337063727,1725403832880,-19387.87452268,0.00014786,2]
[337063728,1725403832890,-246.98767887,0.00014799,2]
[337063729,1725403832900,-1997.6511,0.0001485,2]
[337063730,1725403832912,-250.23,0.00014863,2]
[337063731,1725403832921,-250.23,0.00014876,2]
[337063732,1725403832930,-250.23,0.00014876,2]
[337063733,1725403832939,-250.23,0.00014876,2]
[337063734,1725403832949,-250.23,0.00014876,2]
[337063735,1725403832958,-250.23,0.00014876,2]
[337063736,1725403832967,-250.23,0.00014876,2]
[337063737,1725403832976,-250.23,0.00014876,2]
[337063738,1725403832985,-250.23,0.00014876,2]
[337063739,1725403832994,-250.23,0.00014876,2]
[337063740,1725403833004,-250.23,0.00014876,2]
[337063741,1725403833013,-250.23,0.00014876,2]
[337063742,1725403833022,-250.23,0.00014876,2]
[337063743,1725403833032,-250.23,0.00014876,2]
[337063744,1725403833041,-250.23,0.00014876,2]
[337063745,1725403833050,-250.23,0.00014876,2]
[337063746,1725403833059,-250.23,0.00014876,2]
[337063747,1725403833069,-250.23,0.00014876,2]
[337063748,1725403833080,-500.0,0.0001488,2]
[337063749,1725403833090,-31534.34669844,0.00014886,2]
[337063750,1725403833102,-2203.60884502,0.00014886,2]
[337063751,1725403838131,-921.28055295,0.00013422,2]
[337063764,1725403840115,-242.63857905,0.00013422,2]
[337063765,1725403840125,-246.98767887,0.00014811,2]
[337063766,1725403840134,-246.98767887,0.00014824,2]
[337063767,1725403840144,-1077.59914914,0.00014886,2]
[337063768,1725403840250,-372.50946649,0.00014886,2]
[337063769,1725403840261,-7260.50064248,0.00014886,2]
[337063770,1725403840272,-983.78113628,0.00014886,2]
[337063771,1725403840283,-760.32601188,0.00014886,2]
[337063772,1725403840428,-667.8359,0.00014886,2]
[337063785,1725403843158,-246.98767887,0.00014837,2]
[337063786,1725403843168,-68521.9264504,0.00014886,2]
[337063787,1725403843262,-6560.72660935,0.00014886,2]
[337063791,1725403844251,-457.46955249,0.00014886,2]
[337063792,1725403844264,-6950.22205377,0.00014886,2]
[337063793,1725403844276,-253.88923684,0.00014886,2]
[337063794,1725403844294,-524.26,0.00014886,2]
[337063795,1725403844307,-451.22072221,0.00014886,2]
[337063796,1725403844332,-16603.32232521,0.00014886,2]
[337063797,1725403844341,-665.10420141,0.00014886,2]
[337063798,1725403844352,-1315.64169859,0.00014886,2]
[337063799,1725403844362,-500.0,0.00014898,2]
[337063800,1725403844372,-3281.92830141,0.00014898,2]
[337063871,1725403876835,500.0,0.00011164,2]
[337063872,1725404009295,550.0,0.00011,2]
[337063873,1725404010420,600.0,0.00013,2]
[337063874,1725404241289,408.99,0.00011978,2]
[337063875,1725404352543,155.55,0.00010959,2]
[337063876,1725404716612,6933.49181484,0.000111,2]
[337063877,1725404739801,388.54,0.00011892,2]
[337063895,1725405032430,-324.24499998,0.00013422,2]
[337063896,1725405032440,-154.91500002,0.00013714,2]
[337063897,1725405032452,-95.08499998,0.00013714,2]
[337063898,1725405032463,-250.0,0.00013714,2]
[337063899,1725405032472,-502.28,0.0001375,2]
[337063900,1725405032482,-1000.0,0.00013751,2]
[337063901,1725405032492,-309.06,0.00013796,2]
[337063902,1725405032502,-746.42500002,0.00013819,2]
[337063922,1725405038572,-16749.90315973,0.00013819,2]
[337063935,1725405040431,-1156.74742854,0.00013819,2]
[337063976,1725405046358,-2289.05269744,0.00013819,2]
[337063991,1725405228955,431.74,0.00011923,2]
[337063992,1725405401549,159.14,0.00010959,2]
[337063993,1725405644110,2750.0,0.00015,7]
[337063994,1725405696775,1100.0,0.00015,7]
[337063995,1725405758318,410.15,0.00011683,2]
[337063996,1725405814987,550.0,0.00011,2]
[337063997,1725405816089,600.0,0.00013,2]
[337064004,1725405975270,-300.0,0.00015,5]
[337064005,1725405975292,-320.0,0.00015,5]
[337064008,1725406009722,-195.34915781,0.00013488,2]
[337064009,1725406009744,-250.0,0.00013511,2]
[337064010,1725406009766,-250.0,0.00013512,2]
[337064011,1725406009787,-750.26,0.00013543,2]
[337064012,1725406009808,-250.0,0.00013605,2]
[337064013,1725406009832,-300.0,0.00013646,2]
[337064014,1725406009853,-3399.94085289,0.00013647,2]
[337064015,1725406010050,-6637.72,0.00013647,2]
[337064016,1725406010074,-23900.0,0.0001368,2]
[337064017,1725406010095,-200.0,0.00013693,2]
[337064018,1725406010118,-1000.0,0.00013705,2]
[337064019,1725406010139,-919.78,0.00013727,2]
[337064020,1725406010160,-4000.0,0.00013734,2]
[337064021,1725406010183,-151.56,0.00013744,2]
[337064022,1725406010204,-150.76,0.00013805,2]
[337064023,1725406010227,-154.54,0.0001386,2]
[337064024,1725406010249,-170.24,0.00013868,2]
[337064025,1725406010271,-1964.23948,0.0001388,2]
[337064026,1725406010291,-720.459139,0.000139,2]
[337064027,1725406010312,-378.88293304,0.00013904,2]
[337064028,1725406010334,-410.15,0.00013947,2]
[337064029,1725406021347,15521.7958175,0.0001388,2]
[337064030,1725406025162,291.45,0.00010959,2]
[337064035,1725406043557,-150.0,0.00014079,2]
[337064036,1725406043579,-1921.0,0.0001408,2]
[337064037,1725406043601,-3731.0,0.0001408,2]
[337064038,1725406043622,-5855.0,0.0001408,2]
[337064039,1725406043642,-289.0,0.0001408,2]
[337064040,1725406043663,-1144.0,0.0001408,2]
[337064041,1725406043684,-1078.0,0.0001408,2]
[337064042,1725406043705,-150.0,0.000141,2]
[337064043,1725406043726,-1964.23948,0.0001414,2]
[337064044,1725406043747,-654.23,0.00014187,2]
[337064045,1725406043769,-780.84,0.000142,2]
[337064046,1725406058119,500.0,0.000142,2]
[337064047,1725406069746,-550.0905006,0.00014685,2]
[337064048,1725406069768,-268.47,0.00014686,2]
[337064049,1725406069792,-7043.8624,0.00014686,2]
[337064050,1725406069815,-620.8802,0.00014686,2]
[337064051,1725406069839,-550.09050058,0.00014709,2]
[337064052,1725406069862,-550.09050058,0.00014733,2]
[337064053,1725406069885,-550.09050058,0.00014757,2]
[337064054,1725406069906,-31942.93692194,0.0001477,2]
[337064055,1725406069928,-550.09050058,0.00014781,2]
[337064056,1725406069949,-151.13,0.00014785,2]
[337064057,1725406069970,-500.0,0.00014785,2]
[337064058,1725406069991,-541.95342343,0.00014785,2]
[337064059,1725406070013,-500.0,0.00014785,2]
[337064060,1725406070034,-500.0,0.00014785,2]
[337064061,1725406070055,-500.0,0.00014785,2]
[337064062,1725406070075,-555.84,0.00014785,2]
[337064063,1725406070095,-500.0,0.00014785,2]
[337064064,1725406070114,-500.0,0.00014785,2]
[337064065,1725406070134,-500.0,0.00014785,2]
[337064066,1725406070154,-500.0,0.00014785,2]
[337064067,1725406070174,-356.52003488,0.00014785,2]
[337064068,1725406070194,-500.0,0.00014785,2]
[337064069,1725406070214,-500.0,0.00014785,2]
[337064070,1725406070235,-500.0,0.00014785,2]
[337064071,1725406070255,-500.0,0.00014785,2]
[337064072,1725406070276,-500.0,0.00014785,2]
[337064073,1725406070298,-500.0,0.00014785,2]
[337064074,1725406070318,-500.0,0.00014785,2]
[337064075,1725406070338,-500.0,0.00014785,2]
[337064076,1725406070358,-500.0,0.00014785,2]
[337064077,1725406070379,-500.0,0.00014785,2]
[337064078,1725406070398,-500.0,0.00014785,2]
[337064079,1725406070419,-500.0,0.00014785,2]
[337064080,1725406070440,-500.0,0.00014785,2]
[337064081,1725406070460,-500.0,0.00014785,2]
[337064082,1725406070481,-756.64813238,0.000148,2]
[337064083,1725406070501,-150.0,0.000148,2]
[337064084,1725406070524,-550.09050058,0.00014804,2]
[337064085,1725406070550,-550.09050058,0.00014828,2]
[337064086,1725406070571,-11759.07580409,0.0001485,2]
[337064087,1725406070593,-550.09050058,0.00014852,2]
[337064088,1725406070617,-153.257,0.00014864,2]
[337064089,1725406070638,-1036.7495,0.0001487,2]
[337064090,1725406070659,-550.09050058,0.00014876,2]
[337064091,1725406070680,-2500.0,0.00014877,2]
[337064092,1725406070701,-1487.8249,0.00014878,2]
[337064093,1725406070721,-318.35583163,0.00014878,2]
[337064094,1725406070742,-500.0,0.00014879,2]
[337064095,1725406070762,-183.89752903,0.00014888,2]
[337064096,1725406070783,-318.35583161,0.00014889,2]
[337064097,1725406070804,-183.89752902,0.00014893,2]
[337064098,1725406070824,-7500.0,0.00014897,2]
[337064099,1725406070845,-183.89752902,0.00014897,2]
[337064100,1725406070865,-176.7625708,0.00014898,2]
[337064101,1725406070887,-152.74007865,0.00014898,2]
[337064102,1725406070910,-186.22651353,0.00014899,2]
[337064103,1725406070931,-150.62951756,0.000149,2]
[337064104,1725406070951,-186.22651353,0.000149,2]
[337064105,1725406070972,-550.09050058,0.000149,2]
[337064106,1725406070993,-318.35583161,0.000149,2]
[337064107,1725406071015,-15106.04953428,0.000149,2]
[337064108,1725406071036,-417.79,0.00014959,2]
[337064109,1725406071067,-150.0,0.00014959,2]
[337064110,1725406071089,-11956.2461783,0.00014968,3]
[337064111,1725406071110,-2989.06154458,0.00014969,3]
[337064112,1725406071131,-400.0,0.0001497,2]
[337064113,1725406071152,-2989.06154458,0.0001497,3]
[337064114,1725406071174,-500.0,0.00014976,2]
[337064115,1725406071196,-154.90507065,0.00014976,2]
[337064116,1725406071217,-417.34505071,0.00014976,2]
[337064117,1725406071238,-500.0,0.00014976,2]
[337064118,1725406071260,-302.70561813,0.00014976,2]
[337064135,1725406231450,-10000.0,0.00013422,2]
[337064136,1725406231459,-308.46,0.00013988,2]
[337064139,1725406231469,-627.47,0.00014196,2]
[337064140,1725406231478,-150.0,0.00014196,2]
[337064141,1725406231487,-300.0,0.00014227,2]
[337064142,1725406231497,-366.363424,0.00014228,2]
[337064143,1725406231505,-150.0,0.00014799,2]
[337064144,1725406231514,-182954.507,0.000148,2]
[337064145,1725406231687,-11759.07580409,0.0001485,2]
[337064147,1725406231696,-7500.0,0.00014889,2]
[337064148,1725406231706,-150.97,0.00014968,2]
[337064149,1725406231715,-2913.066908,0.00014976,2]
[337064150,1725406231724,-500.0,0.00014976,2]
[337064151,1725406231733,-500.0,0.00014976,2]
[337064152,1725406231742,-500.0,0.00014976,2]
[337064153,1725406231751,-500.0,0.00014976,2]
[337064154,1725406231760,-500.0,0.00014976,2]
[337064155,1725406231769,-500.0,0.00014976,2]
[337064156,1725406231779,-500.0,0.00014976,2]
[337064157,1725406231787,-500.0,0.00014976,2]
[337064158,1725406231797,-500.0,0.00014976,2]
[337064159,1725406231806,-500.0,0.00014976,2]
[337064160,1725406231816,-500.0,0.00014976,2]
[337064161,1725406231826,-1309.49298,0.00014976,2]
[337064162,1725406231836,-500.0,0.00014976,2]
[337064163,1725406231846,-500.0,0.00014976,2]
[337064164,1725406231856,-500.0,0.00014976,2]
[337064165,1725406231866,-500.0,0.00014976,2]
[337064166,1725406231875,-301.89653815,0.00014976,2]
[337064167,1725406231884,-500.0,0.00014976,2]
[337064168,1725406231894,-500.0,0.00014976,2]
[337064169,1725406231904,-500.0,0.00014976,2]
[337064170,1725406231913,-500.0,0.00014976,2]
[337064171,1725406231923,-500.0,0.00014976,2]
[337064172,1725406231932,-500.0,0.00014976,2]
[337064173,1725406231941,-500.0,0.00014976,2]
[337064174,1725406231951,-500.0,0.00014976,2]
[337064175,1725406231960,-500.0,0.00014976,2]
[337064176,1725406231969,-69318.97052878,0.00014976,2]
[337064177,1725406231981,-299.99,0.00014976,2]
[337064179,1725406237453,-569.78816292,0.00013983,2]
[337064186,1725406237566,-306.53181999,0.00013983,2]
[337064187,1725406237594,-529.87799992,0.00013983,2]
[337064188,1725406237795,-6757.0,0.00013983,2]
[337064282,1725406239554,-10244.95201717,0.00013983,2]
[337064283,1725406239564,-663.71,0.000143,2]
[337064284,1725406239573,-7500.0,0.00014889,2]
[337064285,1725406239586,-30381.03947122,0.00014976,2]
[337064286,1725406239595,-500.0,0.00014976,2]
[337064287,1725406239605,-500.0,0.00014976,2]
[337064288,1725406239614,-500.0,0.00014976,2]
[337064289,1725406239625,-607.08555463,0.00014976,2]
[337064290,1725406239634,-500.0,0.00014976,2]
[337064291,1725406239643,-500.0,0.00014976,2]
[337064292,1725406239654,-500.0,0.00014976,2]
[337064293,1725406239666,-500.0,0.00014976,2]
[337064294,1725406239675,-150.97,0.00014976,2]
[337064295,1725406239685,-176.93202708,0.00014977,2]
[337064296,1725406239695,-500.0,0.00014977,2]
[337064297,1725406239705,-555.79,0.00014977,2]
[337064298,1725406239714,-500.0,0.00014977,2]
[337064299,1725406239723,-500.0,0.00014977,2]
[337064300,1725406239733,-500.0,0.00014977,2]
[337064301,1725406239742,-500.0,0.00014977,2]
[337064302,1725406239751,-500.0,0.00014977,2]
[337064303,1725406239761,-500.0,0.00014977,2]
[337064304,1725406239771,-500.0,0.00014977,2]
[337064305,1725406239781,-500.0,0.00014977,2]
[337064306,1725406239791,-500.0,0.00014977,2]
[337064307,1725406239800,-500.0,0.00014977,2]
[337064308,1725406239810,-500.0,0.00014977,2]
[337064309,1725406239819,-500.0,0.00014977,2]
[337064310,1725406239828,-500.0,0.00014977,2]
[337064311,1725406239838,-500.0,0.00014977,2]
[337064312,1725406239847,-500.0,0.00014977,2]
[337064313,1725406239856,-159.37219907,0.00014977,2]
[337064314,1725406239864,-500.0,0.00014977,2]
[337064315,1725406239874,-500.0,0.00014977,2]
[337064316,1725406239883,-500.0,0.00014977,2]
[337064317,1725406239892,-500.0,0.00014977,2]
[337064318,1725406239902,-500.0,0.00014977,2]
[337064319,1725406239911,-500.0,0.00014977,2]
[337064320,1725406239921,-500.0,0.00014977,2]
[337064322,1725406239930,-500.0,0.00014977,2]
[337064323,1725406239939,-500.0,0.00014977,2]
[337064324,1725406239948,-500.0,0.00014977,2]
[337064325,1725406239958,-500.0,0.00014977,2]
[337064326,1725406239967,-500.0,0.00014977,2]
[337064327,1725406239976,-500.0,0.00014977,2]
[337064328,1725406239985,-500.0,0.00014977,2]
[337064329,1725406239994,-500.0,0.00014977,2]
[337064330,1725406240003,-500.0,0.00014977,2]
[337064331,1725406240012,-500.0,0.00014977,2]
[337064333,1725406240021,-500.0,0.00014977,2]
[337064334,1725406240030,-500.0,0.00014977,2]
[337064336,1725406240039,-500.0,0.00014977,2]
[337064337,1725406240048,-500.0,0.00014977,2]
[337064338,1725406240057,-500.0,0.00014977,2]
[337064339,1725406240067,-500.0,0.00014977,2]
[337064340,1725406240076,-500.0,0.00014977,2]
[337064341,1725406240085,-500.0,0.00014977,2]
[337064342,1725406240094,-500.0,0.00014977,2]
[337064343,1725406240103,-500.0,0.00014977,2]
[337064344,1725406240112,-500.0,0.00014977,2]
[337064345,1725406240121,-500.0,0.00014977,2]
[337064346,1725406240130,-353.71868599,0.00014977,2]
[337064347,1725406240139,-500.0,0.00014977,2]
[337064348,1725406240148,-500.0,0.00014977,2]
[337064349,1725406240158,-500.0,0.00014977,2]
[337064350,1725406240167,-500.0,0.00014977,2]
[337064351,1725406240176,-500.0,0.00014977,2]
[337064352,1725406240185,-500.0,0.00014977,2]
[337064353,1725406240194,-500.0,0.00014977,2]
[337064354,1725406240203,-500.0,0.00014977,2]
[337064355,1725406240212,-500.0,0.00014977,2]
[337064356,1725406240221,-500.0,0.00014977,2]
[337064357,1725406240230,-500.0,0.00014977,2]
[337064358,1725406240239,-500.0,0.00014977,2]
[337064359,1725406240248,-27725.01,0.00014977,2]
[337064360,1725406240257,-500.0,0.00014977,2]
[337064361,1725406240266,-355.40067789,0.00014977,2]
[337064362,1725406240275,-157.59,0.00014977,2]